fUST/lending_fUST_20250609
["ID","MTS","AMOUNT","RATE_DAILY","PERIOD"]
[365062653,1749435051310,-154.610488,0.00024567,7]
[365062655,1749435051319,-151.0,0.00024567,7]
[365062657,1749435051329,-151.0,0.00024567,7]
[365062659,1749435051338,-151.0,0.00024567,7]
[365062661,1749435051347,-151.0,0.00024567,7]
[365062663,1749435051357,-151.0,0.00024567,7]
[365062665,1749435051366,-151.0,0.00024567,7]
[365062667,1749435051375,-151.0,0.00024567,7]
[365062669,1749435051385,-415.726429,0.00024567,7]
[365062671,1749435051395,-415.726429,0.00024567,7]
[365062673,1749435051404,-415.726429,0.00024567,7]
[365062675,1749435051413,-415.726429,0.00024567,7]
[365062677,1749435051428,-415.726429,0.00024567,7]
[365062679,1749435051441,-415.726429,0.00024567,7]
[365062681,1749435051451,-415.726429,0.00024567,7]
[365062683,1749435051460,-415.726429,0.00024567,7]
[365062685,1749435051470,-415.726429,0.00024567,7]
[365062687,1749435051480,-415.726429,0.00024567,7]
[365062689,1749435051490,-415.726429,0.00024567,7]
[365062691,1749435051500,-415.726434,0.00024567,7]
[365062693,1749435051509,-151.057529,0.00024567,7]
[365062695,1749435051519,-151.057529,0.00024567,7]
[365062697,1749435051528,-151.057529,0.00024567,7]
[365062699,1749435051538,-151.057529,0.00024567,7]
[365062701,1749435051547,-151.057529,0.00024567,7]
[365062703,1749435051556,-151.057529,0.00024567,7]
[365062705,1749435051566,-151.057529,0.00024567,7]
[365062707,1749435051575,-151.057529,0.00024567,7]
[365062709,1749435051585,-151.057529,0.00024567,7]
[365062711,1749435051594,-151.057529,0.00024567,7]
[365062713,1749435051604,-151.057529,0.00024567,7]
[365062715,1749435051614,-151.057529,0.00024567,7]
[365062717,1749435051624,-151.0,0.00024567,7]
[365062719,1749435051634,-151.0,0.00024567,7]
[365062721,1749435051644,-240.665223,0.00024567,7]
[365062723,1749435051653,-151.0,0.00024567,7]
[365062725,1749435051663,-151.0,0.00024567,7]
[365062727,1749435051673,-151.0,0.00024567,7]
[365062729,1749435051683,-151.0,0.00024567,7]
[365062731,1749435051693,-151.0,0.00024567,7]
[365062733,1749435051703,-151.0,0.00024567,7]
[365062735,1749435051712,-151.0,0.00024567,7]
[365062737,1749435051722,-151.0,0.00024567,7]
[365062740,1749435051732,-151.0,0.00024567,7]
[365062742,1749435051741,-151.0,0.00024567,7]
[365062744,1749435051750,-179.334247,0.00024567,7]
[365062746,1749435051760,-155.0,0.00024567,2]
[365062748,1749435051769,-157.952019,0.00024568,7]
[365062750,1749435051779,-154.786526,0.00024568,7]
[365062752,1749435051788,-164.0,0.00024568,7]
[365062754,1749435051797,-151.0,0.00024568,7]
[365062756,1749435051808,-151.0,0.00024568,7]
[365062758,1749435051818,-151.0,0.00024568,7]
[365062760,1749435051827,-151.0,0.00024568,7]
[365062762,1749435051837,-151.0,0.00024568,7]
[365062766,1749435051860,-161.191206,0.00024568,7]
[365062768,1749435051871,-151.0,0.00024568,7]
[365062770,1749435051881,-151.0,0.00024568,7]
[365062772,1749435051892,-159.622501,0.00024568,7]
[365062774,1749435051902,-887.719557,0.00024568,2]
[365062776,1749435051912,-887.719557,0.00024568,2]
[365062778,1749435051922,-887.719557,0.00024568,2]
[365062780,1749435051933,-887.719557,0.00024568,2]
[365062783,1749435051945,-887.719557,0.00024568,2]
[365062785,1749435051956,-887.719557,0.00024568,2]
[365062787,1749435051967,-887.719557,0.00024568,2]
[365062789,1749435051977,-887.719557,0.00024568,2]
[365062791,1749435051988,-275.42208913,0.00024568,7]
[365062793,1749435051998,-887.719557,0.00024568,2]
[365062795,1749435052008,-887.719557,0.00024568,2]
[365062797,1749435052018,-887.719557,0.00024568,2]
[365062799,1749435052028,-887.71954976,0.00024568,2]
[365062801,1749435052039,-151.0,0.00024568,7]
[365062803,1749435052049,-151.0,0.00024568,7]
[365062805,1749435052061,-44954.23786853,0.00024568,2]
[365062808,1749435052072,-81113.81272409,0.00024568,2]
[365062810,1749435052082,-247278.52551654,0.00024568,20]
[365062826,1749435052218,-10278.1507587,0.00024568,20]
[365062845,1749435052388,-440.0,0.00019178,2]
[365062847,1749435052397,-377.84,0.00019178,2]
[365062849,1749435052408,-62.16,0.00019178,2]
[365062851,1749435052419,-440.0,0.00019452,2]
[365062853,1749435052428,-440.0,0.00019452,2]
[365062856,1749435052443,-440.0,0.00019726,2]
[365062858,1749435052452,-440.0,0.0002,2]
[365062860,1749435052462,-440.0,0.00020273,2]
[365062862,1749435052472,-440.0,0.00020547,2]
[365062864,1749435052481,-151.0,0.000232,7]
[365062866,1749435052491,-364.9269501,0.00023589,2]
[365062868,1749435052500,-158.7201836,0.00023753,2]
[365062870,1749435052511,-176.7945793,0.00023753,2]
[365062872,1749435052520,-568.43521159,0.00023753,2]
[365062883,1749435052610,-440.0,0.00019178,2]
[365062885,1749435052620,-440.0,0.00019178,2]
[365062887,1749435052630,-440.0,0.00019452,2]
[365062889,1749435052639,-440.0,0.00019452,2]
[365062891,1749435052649,-440.0,0.00019726,2]
[365062893,1749435052658,-440.0,0.00019726,2]
[365062895,1749435052668,-440.0,0.0002,2]
[365062897,1749435052677,-270.07,0.0002,2]
[365062898,1749435052687,-440.0,0.00020821,2]
[365062899,1749435052697,-440.0,0.00021095,2]
[365062900,1749435052706,-440.0,0.00021369,2]
[365062901,1749435052716,-440.0,0.00021643,2]
[365062902,1749435052725,-440.0,0.00021917,2]
[365062903,1749435052734,-314.46,0.00022191,4]
[365062904,1749435052744,-152.449655,0.000232,7]
[365062905,1749435052753,-4.80972741,0.00023753,2]
[365062906,1749435052763,-151.0,0.00024076,7]
[365062907,1749435052772,-151.0,0.00024321,7]
[365062908,1749435052782,-151.0,0.00024563,7]
[365062909,1749435052791,-151.0,0.00024568,7]
[365062910,1749435052801,-151.0,0.00024568,7]
[365062911,1749435052810,-151.0,0.00024568,7]
[365062912,1749435052820,-151.0,0.00024568,7]
[365062914,1749435052829,-94.49829245,0.00024568,7]
[365062917,1749435052842,-56.50170755,0.00024568,7]
[365062919,1749435052852,-151.0,0.00024568,7]
[365062921,1749435052861,-246.891664,0.00024568,7]
[365062923,1749435052874,-3525.87371421,0.00024568,20]
[365063649,1749435068724,150.0,0.00017499,2]
[365063650,1749435251494,165.96146,0.00013699,2]
[365063654,1749435307595,150.0,0.000173,2]
[365063657,1749435464249,150.0,0.0001685,2]
[365063658,1749435464660,150.52,0.00017652,2]
[365063659,1749435543490,150.0,0.00016941,2]
[365063660,1749435543981,150.0,0.00017748,2]
[365063661,1749435624688,150.0,0.00016848,2]
[365063662,1749435625095,150.0,0.0001765,2]
[365063664,1749435706020,150.0,0.00017141,2]
[365063665,1749435706599,150.0,0.00017957,2]
[365063666,1749435782792,150.0,0.00017147,2]
[365063667,1749435783374,150.0,0.00017964,2]
[365063668,1749435859378,150.0,0.00017096,2]
[365063669,1749435859799,150.0,0.0001791,2]
[365063670,1749435938454,77.78346133,0.00017174,2]
[365063671,1749435938479,72.21653867,0.00017174,2]
[365063672,1749435938913,150.0,0.00017991,2]
[365063673,1749435997542,16860.5560041,0.00024568,120]
[365063676,1749436018931,150.0,0.0001707,2]
[365063677,1749436019361,150.0,0.00017882,2]
[365063678,1749436094872,1614.75248079,0.00024568,120]
[365063679,1749436098740,150.0,0.00017076,2]
[365063680,1749436099345,150.0,0.00017889,2]
[365063698,1749436178158,150.0,0.00017259,2]
[365063724,1749436232117,-150.0,0.0001808,2]
[365063726,1749436232129,-862.9669551,0.0001829,2]
[365063728,1749436232139,-3365.0,0.000185,2]
[365063729,1749436232149,-167.28,0.00018902,2]
[365063731,1749436232158,-155.45774948,0.00019077,2]
[365063733,1749436232167,-5000.0,0.0001917,2]
[365063736,1749436232177,-300.0,0.00019172,2]
[365063737,1749436232186,-542.29624355,0.00019173,2]
[365063739,1749436232196,-306.90955382,0.00019173,2]
[365063745,1749436232224,-196.54070984,0.00019173,2]
[365063748,1749436232233,-501.05062496,0.00019173,2]
[365063750,1749436232243,-504.44394174,0.00019173,2]
[365063752,1749436232253,-561.57111594,0.00019173,2]
[365063753,1749436232263,-507.47900328,0.00019173,2]
[365063754,1749436232272,-500.80733449,0.00019173,2]
[365063755,1749436232283,-500.0,0.00019173,2]
[365063756,1749436232293,-509.74165605,0.00019173,2]
[365063757,1749436232302,-502.20439799,0.00019173,2]
[365063758,1749436232312,-162.68,0.00019177,2]
[365063759,1749436232324,-152.54215213,0.00019177,2]
[365063760,1749436232335,-1258.45567614,0.00019177,2]
[365063761,1749436232345,-1258.45567614,0.00019177,2]
[365063762,1749436232354,-1258.45567614,0.00019177,2]
[365063763,1749436232365,-1258.45567614,0.00019177,2]
[365063764,1749436232374,-1258.45567614,0.00019177,2]
[365063765,1749436232383,-1258.45567614,0.00019177,2]
[365063766,1749436232393,-1258.45567614,0.00019177,2]
[365063767,1749436232404,-1258.45567614,0.00019177,2]
[365063768,1749436232414,-1258.45567614,0.00019177,2]
[365063769,1749436232423,-1258.45567614,0.00019177,2]
[365063770,1749436232433,-1258.45567614,0.00019177,2]
[365063771,1749436232443,-1258.45567614,0.00019177,2]
[365063772,1749436232453,-1258.45567614,0.00019177,2]
[365063773,1749436232463,-1258.45567614,0.00019177,2]
[365063774,1749436232472,-1258.45567614,0.00019177,2]
[365063775,1749436232481,-1258.45567614,0.00019177,2]
[365063776,1749436232491,-1258.45567614,0.00019177,2]
[365063777,1749436232501,-1289.91706804,0.00019177,2]
[365063778,1749436232510,-1289.91706804,0.00019177,2]
[365063779,1749436232520,-1289.91706804,0.00019177,2]
[365063780,1749436232529,-1289.91706804,0.00019177,2]
[365063781,1749436232539,-1289.91706804,0.00019177,2]
[365063782,1749436232548,-1289.91706804,0.00019177,2]
[365063783,1749436232558,-1289.91706804,0.00019177,2]
[365063784,1749436232568,-1289.91706804,0.00019177,2]
[365063785,1749436232577,-1289.91706804,0.00019177,2]
[365063786,1749436232587,-1289.91706804,0.00019177,2]
[365063787,1749436232596,-1289.91706804,0.00019177,2]
[365063788,1749436232605,-2255.13087416,0.00019177,2]
[365063789,1749436232616,-277.83627294,0.00019178,2]
[365063790,1749436232627,-440.0,0.00019178,2]
[365063791,1749436232638,-440.0,0.00019178,2]
[365063792,1749436232649,-451.2946965,0.00019178,2]
[365063793,1749436232660,-436.71889776,0.00019178,2]
[365063794,1749436232670,-363.36406456,0.00019178,2]
[365063795,1749436232681,-440.0,0.00019178,2]
[365063796,1749436232690,-440.0,0.00019178,2]
[365063797,1749436232700,-429.84184413,0.00019178,2]
[365063798,1749436232711,-432.24472548,0.00019178,2]
[365063799,1749436232720,-440.0,0.00019178,2]
[365063800,1749436232730,-431.93712277,0.00019178,2]
[365063801,1749436232741,-440.0,0.00019178,2]
[365063802,1749436232750,-440.0,0.00019178,2]
[365063803,1749436232760,-426.23638096,0.00019178,2]
[365063804,1749436232771,-440.0,0.00019178,2]
[365063805,1749436232783,-434.91562143,0.00019178,2]
[365063806,1749436232794,-529.58009577,0.00019178,2]
[365063807,1749436232803,-462.26980743,0.00019178,2]
[365063808,1749436232813,-526.17055708,0.00019178,2]
[365063809,1749436232823,-411.75023876,0.00019178,2]
[365063810,1749436232834,-433.41677075,0.00019178,2]
[365063811,1749436232843,-440.0,0.00019178,2]
[365063812,1749436232853,-440.0,0.00019178,2]
[365063813,1749436232863,-426.95360167,0.00019178,2]
[365063814,1749436232873,-440.0,0.00019178,2]
[365063815,1749436232883,-440.0,0.00019178,2]
[365063816,1749436232893,-440.0,0.00019178,2]
[365063817,1749436232903,-440.0,0.00019178,2]
[365063818,1749436232914,-440.0,0.00019178,2]
[365063819,1749436232925,-440.0,0.00019178,2]
[365063820,1749436232935,-401.08107805,0.00019178,2]
[365063821,1749436232945,-440.0,0.00019178,2]
[365063822,1749436232955,-440.0,0.00019178,2]
[365063823,1749436232964,-440.0,0.00019178,2]
[365063824,1749436232974,-440.0,0.00019178,2]
[365063825,1749436232983,-401.8367901,0.00019178,2]
[365063826,1749436232994,-440.0,0.00019178,2]
[365063827,1749436233004,-440.0,0.00019178,2]
[365063828,1749436233014,-402.72830568,0.00019178,2]
[365063829,1749436233024,-440.0,0.00019178,2]
[365063830,1749436233033,-440.0,0.00019178,2]
[365063831,1749436233043,-440.0,0.00019178,2]
[365063832,1749436233053,-400.66937048,0.00019178,2]
[365063833,1749436233062,-440.0,0.00019178,2]
[365063834,1749436233072,-279.15347199,0.00019178,2]
[365063835,1749436233082,-401.76397618,0.00019178,2]
[365063836,1749436233092,-440.0,0.00019178,2]
[365063837,1749436233102,-434.1899756,0.00019178,2]
[365063838,1749436233113,-440.0,0.00019178,2]
[365063839,1749436233123,-440.0,0.00019178,2]
[365063840,1749436233133,-401.62217019,0.00019178,2]
[365063841,1749436233143,-401.64289225,0.00019178,2]
[365063842,1749436233153,-342.45187068,0.00019178,2]
[365063843,1749436233162,-440.0,0.00019178,2]
[365063844,1749436233171,-400.71248693,0.00019178,2]
[365063845,1749436233181,-401.21898566,0.00019178,2]
[365063846,1749436233190,-505.55711877,0.00019178,2]
[365063847,1749436233200,-440.0,0.00019178,2]
[365063848,1749436233210,-450.3095944,0.00019178,2]
[365063849,1749436233220,-440.0,0.00019178,2]
[365063850,1749436233230,-401.00586286,0.00019178,2]
[365063851,1749436233241,-440.0,0.00019178,2]
[365063852,1749436233250,-440.0,0.00019178,2]
[365063853,1749436233261,-440.0,0.00019178,2]
[365063854,1749436233271,-445.60027456,0.00019178,2]
[365063855,1749436233280,-440.0,0.00019178,2]
[365063856,1749436233289,-440.0,0.00019178,2]
[365063857,1749436233306,-459.01231833,0.00019178,2]
[365063858,1749436233323,-444.3390659,0.00019178,2]
[365063859,1749436233334,-463.10894084,0.00019178,2]
[365063860,1749436233344,-440.0,0.00019178,2]
[365063861,1749436233354,-400.0,0.00019178,2]
[365063862,1749436233366,-440.0,0.00019178,2]
[365063863,1749436233376,-440.0,0.00019178,2]
[365063864,1749436233386,-440.0,0.00019178,2]
[365063865,1749436233395,-463.14433132,0.00019178,2]
[365063866,1749436233406,-440.0,0.00019178,2]
[365063867,1749436233416,-419.31169848,0.00019178,2]
[365063868,1749436233430,-440.0,0.00019178,2]
[365063869,1749436233441,-195.93703994,0.00019178,2]
[365063870,1749436233451,-433.51456444,0.00019178,2]
[365063871,1749436233460,-440.0,0.00019178,2]
[365063872,1749436233470,-294.73191898,0.00019178,2]
[365063873,1749436233643,-448.54835393,0.00019178,2]
[365063874,1749436233655,-440.0,0.00019178,2]
[365063875,1749436233665,-500.0,0.00019178,2]
[365063876,1749436233675,-500.0,0.00019178,2]
[365063877,1749436233685,-500.0,0.00019178,2]
[365063878,1749436233696,-500.0,0.00019178,2]
[365063879,1749436233706,-500.0,0.00019178,2]
[365063880,1749436233716,-500.0,0.00019178,2]
[365063881,1749436233726,-500.0,0.00019178,2]
[365063882,1749436233737,-500.0,0.00019178,2]
[365063883,1749436233747,-500.0,0.00019178,2]
[365063884,1749436233757,-500.0,0.00019178,2]
[365063885,1749436233767,-500.0,0.00019178,2]
[365063886,1749436233776,-500.0,0.00019178,2]
[365063887,1749436233786,-500.0,0.00019178,2]
[365063888,1749436233796,-500.0,0.00019178,2]
[365063889,1749436233806,-500.0,0.00019178,2]
[365063890,1749436233815,-500.0,0.00019178,2]
[365063891,1749436233826,-500.0,0.00019178,2]
[365063892,1749436233835,-500.0,0.00019178,2]
[365063893,1749436233846,-500.0,0.00019178,2]
[365063894,1749436233856,-500.0,0.00019178,2]
[365063895,1749436233867,-500.0,0.00019178,2]
[365063896,1749436233881,-500.0,0.00019178,2]
[365063897,1749436233891,-500.0,0.00019178,2]
[365063898,1749436233901,-500.0,0.00019178,2]
[365063899,1749436233911,-444.38680811,0.00019178,2]
[365063900,1749436233921,-500.0,0.00019178,2]
[365063901,1749436233931,-500.0,0.00019178,2]
[365063902,1749436233940,-500.0,0.00019178,2]
[365063903,1749436233951,-500.0,0.00019178,2]
[365063904,1749436233961,-500.0,0.00019178,2]
[365063905,1749436233974,-500.0,0.00019178,2]
[365063906,1749436233983,-500.0,0.00019178,2]
[365063907,1749436233993,-500.0,0.00019178,2]
[365063908,1749436234003,-500.0,0.00019178,2]
[365063909,1749436234013,-440.0,0.00019178,2]
[365063910,1749436234023,-500.0,0.00019178,2]
[365063911,1749436234033,-443.12533894,0.00019178,2]
[365063912,1749436234043,-443.68241334,0.00019178,2]
[365063913,1749436234053,-440.0,0.00019178,2]
[365063914,1749436234063,-442.50095546,0.00019178,2]
[365063915,1749436234073,-443.81944229,0.00019178,2]
[365063916,1749436234082,-402.43191726,0.00019178,2]
[365063917,1749436234092,-440.0,0.00019178,2]
[365063918,1749436234101,-404.11312759,0.00019178,2]
[365063919,1749436234111,-451.28203019,0.00019178,2]
[365063920,1749436234122,-440.0,0.00019178,2]
[365063921,1749436234131,-452.38809217,0.00019178,2]
[365063922,1749436234141,-440.0,0.00019178,2]
[365063923,1749436234151,-442.57860672,0.00019178,2]
[365063924,1749436234161,-440.0,0.00019178,2]
[365063925,1749436234171,-449.70962979,0.00019178,2]
[365063926,1749436234181,-446.21495258,0.00019178,2]
[365063927,1749436234192,-440.0,0.00019178,2]
[365063928,1749436234202,-445.01658594,0.00019178,2]
[365063929,1749436234212,-440.0,0.00019178,2]
[365063930,1749436234221,-440.0,0.00019178,2]
[365063931,1749436234231,-521.75487887,0.00019178,2]
[365063932,1749436234241,-446.92883562,0.00019178,2]
[365063933,1749436234251,-440.0,0.00019178,2]
[365063934,1749436234261,-440.0,0.00019178,2]
[365063935,1749436234271,-451.59696879,0.00019178,2]
[365063936,1749436234281,-402.02269492,0.00019178,2]
[365063937,1749436234291,-420.0,0.00019178,2]
[365063938,1749436234300,-500.0,0.00019178,2]
[365063939,1749436234311,-500.0,0.00019178,2]
[365063940,1749436234322,-440.0,0.00019178,2]
[365063941,1749436234334,-618.93995092,0.00019178,2]
[365063942,1749436234344,-437.83470848,0.00019178,2]
[365063943,1749436234354,-440.0,0.00019178,2]
[365063944,1749436234365,-439.18753643,0.00019178,2]
[365063945,1749436234375,-440.0,0.00019178,2]
[365063946,1749436234385,-440.0,0.00019178,2]
[365063947,1749436234395,-440.0,0.00019178,2]
[365063948,1749436234407,-440.0,0.00019178,2]
[365063949,1749436234419,-440.0,0.00019178,2]
[365063950,1749436234429,-440.0,0.00019178,2]
[365063951,1749436234439,-440.0,0.00019178,2]
[365063952,1749436234449,-440.0,0.00019178,2]
[365063953,1749436234459,-515.70424883,0.00019178,2]
[365063954,1749436234469,-445.62874497,0.00019178,2]
[365063955,1749436234479,-391.90048002,0.00019178,2]
[365063956,1749436234489,-440.0,0.00019178,2]
[365063957,1749436234499,-443.57739181,0.00019178,2]
[365063958,1749436234509,-440.0,0.00019178,2]
[365063959,1749436234522,-440.0,0.00019178,2]
[365063960,1749436234531,-433.09461863,0.00019178,2]
[365063961,1749436234542,-440.0,0.00019178,2]
[365063962,1749436234551,-435.17034596,0.00019178,2]
[365063963,1749436234561,-444.06002614,0.00019178,2]
[365063964,1749436234571,-437.27439333,0.00019178,2]
[365063965,1749436234582,-433.39837626,0.00019178,2]
[365063966,1749436234592,-440.0,0.00019178,2]
[365063967,1749436234602,-434.89114875,0.00019178,2]
[365063968,1749436234612,-440.0,0.00019178,2]
[365063969,1749436234621,-440.0,0.00019178,2]
[365063970,1749436234631,-440.0,0.00019178,2]
[365063971,1749436234641,-440.0,0.00019178,2]
[365063972,1749436234652,-440.0,0.00019178,2]
[365063973,1749436234662,-440.0,0.00019178,2]
[365063974,1749436234671,-440.0,0.00019178,2]
[365063975,1749436234681,-440.0,0.00019178,2]
[365063976,1749436234691,-440.0,0.00019178,2]
[365063977,1749436234701,-440.0,0.00019178,2]
[365063978,1749436234712,-411.97185815,0.00019178,2]
[365063979,1749436234722,-440.0,0.00019178,2]
[365063980,1749436234732,-440.0,0.00019178,2]
[365063981,1749436234742,-441.03866977,0.00019178,2]
[365063982,1749436234752,-500.0,0.00019178,2]
[365063983,1749436234762,-500.0,0.00019178,2]
[365063984,1749436234772,-549.98087655,0.00019178,2]
[365063985,1749436234782,-444.1484331,0.00019178,2]
[365063986,1749436234791,-440.0,0.00019178,2]
[365063987,1749436234801,-440.0,0.00019178,2]
[365063988,1749436234811,-437.04357715,0.00019178,2]
[365063989,1749436234820,-440.0,0.00019178,2]
[365063990,1749436234830,-440.0,0.00019178,2]
[365063991,1749436234840,-440.0,0.00019178,2]
[365063992,1749436234849,-440.0,0.00019178,2]
[365063993,1749436234859,-442.8272064,0.00019178,2]
[365063994,1749436234869,-440.0,0.00019178,2]
[365063995,1749436234879,-336.27648869,0.00019178,2]
[365063996,1749436234889,-187.57259449,0.00019178,2]
[365063997,1749436234899,-440.0,0.00019178,2]
[365063998,1749436234910,-440.0,0.00019178,2]
[365063999,1749436234922,-424.90530465,0.00019178,2]
[365064000,1749436234931,-159.61727355,0.00019178,2]
[365064001,1749436234942,-440.0,0.00019178,2]
[365064002,1749436234953,-440.0,0.00019178,2]
[365064003,1749436234962,-448.40860458,0.00019178,2]
[365064004,1749436234972,-253.49830614,0.00019178,2]
[365064005,1749436234982,-440.0,0.00019178,2]
[365064006,1749436234991,-440.0,0.00019178,2]
[365064007,1749436235001,-435.0756711,0.00019178,2]
[365064008,1749436235011,-436.45042253,0.00019178,2]
[365064009,1749436235023,-440.0,0.00019178,2]
[365064010,1749436235033,-440.0,0.00019178,2]
[365064011,1749436235042,-440.0,0.00019178,2]
[365064012,1749436235052,-475.63,0.00019178,2]
[365064013,1749436235062,-440.0,0.00019178,2]
[365064014,1749436235072,-440.0,0.00019178,2]
[365064015,1749436235083,-440.0,0.00019178,2]
[365064016,1749436235094,-463.20957805,0.00019178,2]
[365064017,1749436235103,-440.0,0.00019178,2]
[365064018,1749436235112,-435.52396648,0.00019178,2]
[365064019,1749436235123,-535.97,0.00019178,2]
[365064020,1749436235133,-440.0,0.00019178,2]
[365064021,1749436235144,-440.0,0.00019178,2]
[365064022,1749436235154,-435.91991515,0.00019178,2]
[365064023,1749436235163,-440.0,0.00019178,2]
[365064024,1749436235172,-440.0,0.00019178,2]
[365064025,1749436235182,-440.0,0.00019178,2]
[365064026,1749436235191,-434.1944289,0.00019178,2]
[365064027,1749436235202,-440.0,0.00019178,2]
[365064028,1749436235212,-436.34099417,0.00019178,2]
[365064029,1749436235221,-470.18694244,0.00019178,2]
[365064030,1749436235230,-440.0,0.00019178,2]
[365064031,1749436235240,-440.0,0.00019178,2]
[365064032,1749436235250,-440.0,0.00019178,2]
[365064033,1749436235259,-440.0,0.00019178,2]
[365064034,1749436235268,-440.0,0.00019178,2]
[365064035,1749436235278,-453.60724566,0.00019178,2]
[365064036,1749436235287,-912.64,0.00019178,2]
[365064037,1749436235296,-440.0,0.00019178,2]
[365064038,1749436235305,-440.0,0.00019178,2]
[365064039,1749436235314,-440.0,0.00019178,2]
[365064040,1749436235327,-440.0,0.00019178,2]
[365064041,1749436235336,-517.19,0.00019178,2]
[365064042,1749436235346,-440.0,0.00019178,2]
[365064043,1749436235355,-440.0,0.00019178,2]
[365064044,1749436235366,-440.0,0.00019178,2]
[365064045,1749436235375,-385.33633118,0.00019178,2]
[365064046,1749436235385,-480.02452809,0.00019178,2]
[365064047,1749436235395,-440.0,0.00019178,2]
[365064048,1749436235406,-440.0,0.00019178,2]
[365064049,1749436235416,-500.0,0.00019178,2]
[365064050,1749436235426,-500.0,0.00019178,2]
[365064051,1749436235435,-500.0,0.00019178,2]
[365064052,1749436235445,-500.0,0.00019178,2]
[365064054,1749436235455,-500.0,0.00019178,2]
[365064055,1749436235464,-500.0,0.00019178,2]
[365064056,1749436235473,-500.0,0.00019178,2]
[365064057,1749436235483,-577.13978153,0.00019178,2]
[365064058,1749436235492,-440.0,0.00019178,2]
[365064059,1749436235501,-440.0,0.00019178,2]
[365064060,1749436235511,-440.0,0.00019178,2]
[365064061,1749436235521,-440.0,0.00019178,2]
[365064062,1749436235531,-544.22881347,0.00019178,2]
[365064063,1749436235540,-440.0,0.00019178,2]
[365064064,1749436235550,-440.0,0.00019178,2]
[365064065,1749436235559,-440.0,0.00019178,2]
[365064066,1749436235569,-440.0,0.00019178,2]
[365064067,1749436235579,-444.95864272,0.00019178,2]
[365064068,1749436235588,-440.0,0.00019178,2]
[365064069,1749436235597,-335.0,0.00019178,2]
[365064070,1749436235607,-435.39655312,0.00019178,2]
[365064071,1749436235616,-440.0,0.00019178,2]
[365064072,1749436235625,-440.0,0.00019178,2]
[365064073,1749436235635,-440.0,0.00019178,2]
[365064074,1749436235645,-323.25261905,0.00019178,2]
[365064075,1749436235655,-440.0,0.00019178,2]
[365064076,1749436235665,-440.0,0.00019178,2]
[365064077,1749436235675,-440.0,0.00019178,2]
[365064078,1749436235685,-440.0,0.00019178,2]
[365064079,1749436235695,-440.0,0.00019178,2]
[365064080,1749436235705,-440.0,0.00019178,2]
[365064081,1749436235715,-440.0,0.00019178,2]
[365064082,1749436235726,-430.0,0.00019178,2]
[365064083,1749436235735,-440.0,0.00019178,2]
[365064084,1749436235745,-440.0,0.00019178,2]
[365064085,1749436235756,-436.98022207,0.00019178,2]
[365064086,1749436235766,-439.36562291,0.00019178,2]
[365064087,1749436235777,-1024.15,0.00019178,2]
[365064088,1749436235787,-440.0,0.00019178,2]
[365064089,1749436235798,-390.0,0.00019178,2]
[365064090,1749436235809,-440.0,0.00019178,2]
[365064091,1749436235820,-390.0,0.00019178,2]
[365064092,1749436235831,-430.91676991,0.00019178,2]
[365064093,1749436235841,-420.0,0.00019178,2]
[365064094,1749436235851,-202.9092725,0.00019178,2]
[365064095,1749436235862,-464.36349359,0.00019178,2]